bitfinex-derivatives/quotes_ETHF0:USTF0_20240920
["timestamp","ask_amount","ask_price","bid_price","bid_amount"]
[1726823519665,4.37104143,2553.2,2553.1,0.8986]
[1726823519865,4.77884143,2553.2,2553.1,0.8986]
[1726823520066,4.7162,2553.2,2553.1,0.8986]
[1726823521577,4.7162,2553.2,2553.1,1.2119]
[1726823524080,14.75521,2553.2,2553.1,1.2119]
[1726823524483,14.8178421,2553.2,2553.1,1.2119]
[1726823524674,12.7368521,2553.2,2553.1,0.1690154]
[1726823524980,2.34972,2553.1,2553.0,0.1457]
[1726823525279,9.53695123,2553.1,2553.0,0.1457]
[1726823525581,15.53695123,2553.1,2553.0,0.1457]
[1726823526589,15.53695123,2553.1,2553.0,0.459]
[1726823527278,15.53695123,2553.1,2553.0,0.7688]
[1726823527485,0.39171,2552.5,2552.4,0.274]
[1726823527780,0.39174,2552.3,2552.1,0.3726]
[1726823527990,0.39175,2552.3,2552.1,0.3726]
[1726823529176,0.39176,2552.2,2552.1,0.686]
[1726823529381,0.39174,2552.3,2552.1,0.686]
[1726823529877,0.39176,2552.2,2552.1,0.686]
[1726823530569,3.59956,2552.2,2552.1,0.686]
[1726823540487,3.2078,2552.2,2552.1,0.686]
[1726823540681,3.2078,2552.2,2552.1,2.096]
[1726823541180,0.39176,2552.2,2552.1,2.096]
[1726823542287,0.39175,2552.3,2552.1,2.096]
[1726823542486,0.39176,2552.2,2552.1,2.096]
[1726823543086,0.39176,2552.2,2552.1,0.686]
[1726823543278,0.39175,2552.3,2552.1,0.686]
[1726823543885,0.39176,2552.2,2552.1,0.686]
[1726823544891,3.59956,2552.2,2552.1,0.686]
[1726823545282,3.2078,2552.2,2552.1,0.686]
[1726823546796,0.39176,2552.2,2552.1,0.686]
[1726823551894,0.3798,2552.5,2552.1,2.096]
[1726823552087,3.2078,2552.6,2552.4,1.41]
[1726823552297,4.121,2552.8,2552.5,1.1409]
[1726823552497,3.2078,2552.9,2552.6,1.41]
[1726823553593,3.2078,2552.9,2552.8,1.41]
[1726823554095,3.2078,2552.9,2552.8,5.6401]
[1726823555188,3.2078,2552.9,2552.8,1.7233]
[1726823555893,3.2078,2552.9,2552.8,4.2301]
[1726823556201,3.2078,2552.9,2552.8,0.3133]
[1726823559699,0.39164,2553.0,2552.8,0.3133]
[1726823560100,0.39164,2553.0,2552.9,0.402]
[1726823561296,0.39162,2553.1,2552.9,0.402]
[1726823561503,0.79191,2553.2,2553.0,0.3951]
[1726823561805,0.39162,2553.1,2553.0,0.3951]
[1726823564505,3.2078,2553.9,2553.0,13.3719]
[1726823564812,3.06,2553.5,2553.1,3.2078]
[1726823565010,0.39163,2553.0,2552.9,0.402]
[1726823565605,0.3961,2553.1,2552.9,0.402]
[1726823565810,0.39163,2553.0,2552.9,0.402]
[1726823566915,0.78773,2553.1,2552.9,0.402]
[1726823567600,0.78772,2553.1,2552.9,0.402]
[1726823569508,0.3961,2553.1,2552.9,0.402]
[1726823569712,0.39159,2553.3,2552.9,3.462]
[1726823570015,0.78439,2553.3,2552.9,3.462]
[1726823570500,0.78439,2553.3,2553.0,0.3998]
[1726823570699,0.39162,2553.1,2553.0,0.3998]
[1726823570905,0.39162,2553.1,2552.9,0.402]
[1726823572508,0.39161,2553.2,2552.9,0.402]
[1726823572810,0.3928,2553.3,2552.9,0.402]
[1726823573009,0.3916,2553.2,2553.0,0.3133]
[1726823573214,0.39162,2553.1,2553.0,0.3133]
[1726823573715,0.39161,2553.2,2553.0,0.3133]
[1726823575405,0.3916,2553.3,2553.0,4.2301]
[1726823575610,0.3916,2553.2,2553.0,0.3133]
[1726823576115,0.39161,2553.2,2553.0,4.2301]
[1726823576417,0.97895,2553.4,2553.0,4.2301]
[1726823576617,0.0626867,2553.3,2553.0,0.3133]
[1726823576918,0.39162,2553.1,2553.0,0.3133]
[1726823577217,0.39161,2553.2,2553.0,0.3133]
[1726823577617,3.2078,2553.6,2553.1,3.06]
[1726823577915,3.2078,2553.6,2553.0,0.3133]
[1726823577916,0.06268318,2553.5,2553.4,1.41]
[1726823578112,1.1815,2554.0,2553.4,5.00937]
[1726823578315,0.45417485,2553.9,2553.6,1.41]
[1726823578619,0.7913,2554.0,2553.7,0.4037]
[1726823578812,1.18279,2554.0,2553.9,1.41]
[1726823579012,1.24545907,2554.0,2553.9,1.41]
[1726823579215,0.47506907,2554.0,2553.7,1.8137]
[1726823579409,0.06266907,2553.9,2553.7,1.8137]
[1726823579619,0.3915,2553.9,2553.7,1.8137]
[1726823579814,0.39149,2554.0,2553.7,1.8137]
[1726823580015,1.7823,2554.1,2553.7,1.8137]
[1726823580016,2.17377,2554.1,2553.7,1.8137]
[1726823580216,0.45414644,2554.0,2553.7,1.8137]
[1726823580524,0.39148,2554.0,2553.7,1.8137]
[1726823581220,0.3723,2554.1,2553.7,1.8137]
[1726823581415,0.3915,2553.9,2553.7,1.8137]
[1726823581719,1.41,2554.0,2553.5,1.41]
[1726823581921,0.39149,2553.9,2553.5,1.41]
[1726823582120,0.79799,2553.9,2553.5,1.41]
[1726823583914,0.39151,2553.8,2553.5,1.41]
[1726823584318,0.39153,2553.7,2553.4,4.6178]
[1726823584623,0.39154,2553.7,2553.4,4.6178]
[1726823586630,0.39154,2553.7,2553.5,0.3132]
[1726823587023,0.39154,2553.6,2553.5,0.3132]
[1726823587328,2.60844,2553.6,2553.5,0.3132]
[1726823593329,8.48216,2553.6,2553.5,0.3132]
[1726823593521,8.48216,2553.6,2553.0,0.3737]
[1726823593522,0.39162,2553.1,2553.0,0.3737]
[1726823593728,1.80162,2553.1,2553.0,0.3737]
[1726823593926,0.39162,2553.1,2553.0,0.3737]
[1726823594328,1.80161,2553.2,2553.0,0.3737]
[1726823594528,0.39162,2553.1,2553.0,0.3737]
[1726823595335,0.39162,2553.1,2553.0,0.687]
[1726823595537,0.79382,2553.1,2553.0,0.687]
[1726823601934,1.19062,2553.1,2553.0,0.687]
[1726823602838,1.25331242,2553.1,2553.0,0.687]
[1726823603237,1.19062,2553.1,2553.0,0.687]
[1726823603534,1.25331263,2553.1,2553.0,0.687]
[1726823604232,1.19062,2553.1,2553.0,0.687]
[1726823604539,1.25331328,2553.1,2553.0,0.687]
[1726823607432,1.19062,2553.1,2553.0,0.687]
[1726823607632,1.25331348,2553.1,2553.0,0.687]
[1726823611036,1.19062,2553.1,2553.0,0.687]
[1726823613438,1.19062,2553.1,2553.0,0.3133]
[1726823619842,3.2078,2553.3,2553.1,0.39161]
[1726823620147,0.39154,2553.7,2553.2,0.3729]
[1726823620148,0.39153,2553.7,2553.2,0.3729]
[1726823620348,0.39154,2553.7,2553.4,1.41]
[1726823620655,0.39154,2553.7,2553.5,0.3995]
[1726823620839,0.39154,2553.7,2553.5,0.7724]
[1726823622050,4.3831,2553.8,2553.5,0.7724]
[1726823622245,0.39153,2553.7,2553.5,0.7724]
[1726823622850,0.39154,2553.6,2553.5,0.7724]
[1726823623550,0.39154,2553.7,2553.5,0.7724]
[1726823623849,0.39152,2553.7,2553.5,0.7724]
[1726823625954,0.39152,2553.7,2553.5,1.0856]
[1726823626154,4.3831,2553.8,2553.5,2.4956]
[1726823626155,0.06267782,2553.6,2553.5,2.4956]
[1726823626550,0.06267782,2553.6,2553.5,6.4116]
[1726823627657,0.45421782,2553.6,2553.5,6.4116]
[1726823628358,0.45421607,2553.6,2553.5,6.4116]
[1726823629053,0.39154,2553.6,2553.5,6.4116]
[1726823629258,0.45421564,2553.6,2553.5,6.4116]
[1726823629458,0.45421413,2553.6,2553.5,6.4116]
[1726823629659,0.45421414,2553.6,2553.5,6.4116]
[1726823630459,0.45421414,2553.6,2553.5,2.4956]
[1726823630762,0.45421633,2553.6,2553.5,1.0856]
[1726823631061,0.45421633,2553.6,2553.5,5.0016]
[1726823631956,0.97869,2554.1,2553.5,6.4116]
[1726823632259,0.3915,2553.9,2553.5,2.4956]
[1726823632657,0.06267539,2553.8,2553.5,2.4956]
[1726823632853,4.18636,2554.4,2553.7,1.80152]
[1726823633056,4.18636,2554.4,2553.6,3.2078]
[1726823633057,0.39147,2554.1,2553.8,1.41]
[1726823633261,0.39148,2554.0,2553.9,0.3807]
[1726823633458,0.39148,2554.0,2553.9,0.7657]
[1726823633856,0.39147,2554.1,2553.9,4.6809]
[1726823634061,0.39147,2554.1,2553.9,0.7657]
[1726823634262,0.39148,2554.0,2553.9,0.7657]
[1726823634759,0.39148,2554.0,2553.9,4.6809]
[1726823635060,0.97859,2554.3,2553.9,4.6809]
[1726823635264,0.39148,2554.0,2553.9,0.7657]
[1726823635657,0.39147,2554.1,2553.9,4.6809]
[1726823635858,0.97859,2554.3,2553.9,0.7657]
[1726823636056,0.39147,2554.1,2553.9,0.7657]
[1726823636263,0.39148,2554.0,2553.9,0.7657]
[1726823636462,0.39147,2554.1,2553.9,0.7657]
[1726823637459,4.3776,2554.4,2553.9,0.7657]
[1726823637460,5.35616,2554.4,2553.9,0.7657]
[1726823637660,0.39147,2554.1,2553.9,0.7657]
[1726823638064,0.39146,2554.2,2553.9,0.7657]
[1726823639172,0.97849,2554.6,2554.1,1.41]
[1726823639367,0.39143,2554.4,2554.2,0.3981]
[1726823639661,0.39142,2554.4,2554.3,0.4102]
[1726823640158,0.39142,2554.4,2554.3,0.8057]
[1726823641268,0.39143,2554.3,2554.2,0.3981]
[1726823641566,2.77299,2554.6,2554.2,0.3981]
[1726823641567,0.39142,2554.4,2554.2,0.3981]
[1726823642660,2.77299,2554.6,2554.2,0.3981]
[1726823642966,2.38857,2554.4,2554.0,3.2078]
[1726823643268,0.39146,2554.2,2553.9,0.39]
[1726823643462,1.16164,2554.3,2554.0,1.41]
[1726823644061,0.39145,2554.2,2554.1,1.41]
[1726823645771,0.39147,2554.1,2553.9,0.39]
[1726823647163,3.7450736,2554.3,2553.9,0.39]
[1726823647367,0.39146,2554.2,2553.9,0.39]
[1726823648168,1.1745,2554.3,2553.9,1.8]
[1726823648367,0.39145,2554.2,2553.9,1.8]
[1726823650566,0.39146,2554.1,2553.9,1.8]
[1726823651671,0.39146,2554.1,2554.0,0.3132]
[1726823656465,0.06266319,2554.1,2554.0,0.3132]
[1726823656672,0.45412319,2554.1,2554.0,0.3132]
[1726823656875,0.06266319,2554.1,2554.0,0.3132]
[1726823657078,0.06266319,2554.2,2554.0,0.3132]
[1726823657376,0.45412422,2554.1,2554.0,0.3132]
[1726823661479,0.45412152,2554.1,2554.0,0.3132]
[1726823663376,0.39146,2554.1,2554.0,0.3132]
[1726823668082,5.77751987,2554.6,2554.0,4.2284]
[1726823668083,0.39145,2554.2,2554.0,4.2284]
[1726823668278,0.39145,2554.2,2554.1,1.41]
[1726823668679,0.39145,2554.2,2554.1,5.3252]
[1726823669581,0.39145,2554.2,2554.1,3.9152]
[1726823670174,0.39145,2554.2,2554.1,4.2284]
[1726823670378,4.36751987,2554.6,2554.1,5.6384]
[1726823670574,3.2078,2554.6,2554.3,1.41]
[1726823670781,3.2078,2554.6,2554.5,1.41]
[1726823671086,0.97834,2555.0,2554.5,1.41]
[1726823671087,0.39138,2554.7,2554.5,1.41]
[1726823671283,0.39138,2554.7,2554.6,0.8149]
[1726823672083,2.79091,2554.8,2554.3,3.2078]
[1726823672384,0.39141,2554.5,2554.3,1.41]
[1726823672888,0.79391,2554.5,2554.3,1.41]
[1726823673085,0.39142,2554.4,2554.2,0.4056]
[1726823675180,0.79391,2554.5,2554.3,1.41]
[1726823675589,0.39142,2554.4,2554.3,1.41]
[1726823677087,0.4025,2554.5,2554.3,1.41]
[1726823677287,3.5889,2554.6,2554.3,2.1604]
[1726823677492,0.39141,2554.5,2554.3,2.1604]
[1726823677889,4.379,2554.6,2554.3,2.1604]
[1726823678187,0.39141,2554.5,2554.3,2.1604]
[1726823679593,0.39142,2554.4,2554.3,2.1604]
[1726823679784,0.39141,2554.5,2554.3,2.1604]
[1726823680690,0.39141,2554.5,2554.3,1.41]
[1726823680993,3.9876,2554.6,2554.3,1.41]
[1726823681193,6.37609,2554.6,2554.2,0.4056]
[1726823681388,0.39142,2554.4,2554.2,0.4056]
[1726823681693,0.3863,2554.3,2554.2,0.4056]
[1726823681884,0.7771,2554.3,2554.2,0.4056]
[1726823682994,0.39145,2554.2,2554.1,0.3132]
[1726823683183,0.80065,2554.2,2554.1,0.3132]
[1726823683489,5.75715107,2554.2,2554.1,0.3132]
[1726823685495,11.75715107,2554.2,2554.1,0.3132]
[1726823686294,11.69448,2554.2,2554.1,0.3132]
[1726823686597,11.93308263,2554.2,2554.1,0.3132]
[1726823688391,4.77852284,2554.2,2554.1,0.3132]
[1726823689396,6.18852284,2554.2,2554.1,0.3132]
[1726823690198,7.16715284,2554.2,2554.1,0.3132]
[1726823690391,7.10448,2554.2,2554.1,0.3132]
[1726823690592,3.25195203,2554.2,2554.1,0.3132]
[1726823690801,7.16715203,2554.2,2554.1,0.3132]
[1726823694594,7.16715175,2554.2,2554.1,0.3132]
[1726823695503,5.75715175,2554.2,2554.1,0.3132]
[1726823695699,7.16715175,2554.2,2554.1,0.3132]
[1726823698791,7.16715077,2554.2,2554.1,0.3132]
[1726823699002,10.37495077,2554.2,2554.1,0.3132]
[1726823701897,10.31228,2554.2,2554.1,0.3132]
[1726823702598,6.39708,2554.2,2554.1,0.3132]
[1726823703601,3.59925,2554.2,2554.1,0.3132]
[1726823703789,4.57788,2554.2,2554.1,0.3132]
[1726823703990,3.59925,2554.2,2554.1,0.3132]
[1726823704496,0.39141,2554.5,2554.1,5.6384]
[1726823704701,0.39141,2554.5,2554.2,1.8085]
[1726823704893,0.3914,2554.6,2554.3,0.807]
[1726823705090,4.30291091,2554.8,2554.3,0.807]
[1726823705298,0.3914,2554.5,2554.3,0.807]
[1726823705500,0.39142,2554.5,2554.3,0.807]
[1726823706000,3.2078,2554.6,2554.3,0.807]
[1726823706198,3.5992,2554.6,2554.3,0.807]
[1726823706592,0.3914,2554.5,2554.4,0.3131]
[1726823709006,6.69431,2554.5,2554.4,0.3131]
[1726823709305,7.16326945,2554.5,2554.4,0.3131]
[1726823711106,7.16327478,2554.5,2554.4,0.3131]
[1726823711409,0.45406478,2554.5,2554.4,0.3131]
[1726823711607,0.3914,2554.5,2554.4,0.3131]
[1726823712913,1.86406247,2554.5,2554.4,0.3131]
[1726823713619,1.8014,2554.5,2554.4,0.3131]
[1726823715108,0.3914,2554.5,2554.4,0.3131]
[1726823715304,3.2078,2554.6,2554.4,0.3131]
[1726823715815,3.59919,2554.6,2554.5,0.3873]
[1726823716218,3.66184801,2554.6,2554.5,0.3873]
[1726823718912,0.45404801,2554.6,2554.5,0.3873]
[1726823719121,3.66184801,2554.6,2554.5,0.3873]
[1726823719325,3.66184801,2554.6,2554.5,0.7004]
[1726823719326,3.66184725,2554.6,2554.5,0.7004]
[1726823722617,3.27045725,2554.6,2554.5,0.7004]
[1726823722815,0.06265725,2554.6,2554.5,0.7004]
[1726823723009,0.45404725,2554.6,2554.5,0.7004]
[1726823723316,0.39139,2554.6,2554.5,0.7004]
[1726823723518,0.45404166,2554.6,2554.5,0.7004]
[1726823723713,0.06265166,2554.6,2554.5,0.7004]
[1726823723921,0.06265166,2554.6,2554.5,7.8226]
[1726823724615,0.39136,2554.8,2554.5,7.8226]
[1726823724818,0.39136,2554.8,2554.6,1.41]
[1726823725117,0.39136,2554.8,2554.7,0.792]
[1726823725905,3.2078,2555.0,2554.7,0.792]
[1726823726111,0.39135,2554.9,2554.7,0.792]
[1726823726321,0.39135,2554.9,2554.8,0.4005]
[1726823730015,3.59913,2555.0,2554.8,0.4005]
[1726823730217,0.39133,2555.0,2554.8,0.4005]
[1726823732218,1.59046187,2555.2,2554.8,1.8105]
[1726823732521,0.45396011,2555.1,2554.8,1.8105]
[1726823732713,0.39133,2555.0,2554.8,1.8105]
[1726823733412,4.3777,2555.3,2554.8,0.4005]
[1726823733612,0.39131,2555.2,2554.9,1.41]
[1726823734229,0.3895,2555.5,2555.1,1.41]
[1726823734419,0.39129,2555.3,2555.1,1.41]
[1726823734611,0.39129,2555.3,2555.2,0.3961]
[1726823738226,1.80128,2555.4,2555.2,0.3961]
[1726823738525,1.41,2555.4,2555.2,0.3961]
[1726823738717,0.39128,2555.3,2555.2,0.3961]
[1726823738920,1.80127,2555.4,2555.2,0.3961]
[1726823739117,0.39128,2555.3,2555.2,0.3961]
[1726823740631,0.39131,2555.1,2555.0,0.3131]
[1726823741221,0.78961,2555.1,2555.0,0.3131]
[1726823741428,0.3983,2555.1,2555.0,0.3131]
[1726823743729,0.39131,2555.1,2555.0,0.3131]
[1726823743929,0.3913,2555.2,2555.0,0.3131]
[1726823744432,0.39131,2555.1,2555.0,0.3131]
[1726823744831,0.3913,2555.2,2555.0,0.3131]
[1726823746223,0.39131,2555.1,2555.0,0.3131]
[1726823746427,0.76811,2555.1,2555.0,0.3131]
[1726823746740,3.21902648,2555.1,2555.0,0.3131]
[1726823747039,7.13262648,2555.1,2555.0,0.3131]
[1726823747240,13.13262648,2555.1,2555.0,0.3131]
[1726823747420,7.13262648,2555.1,2555.0,0.3131]
[1726823747730,13.13262648,2555.1,2555.0,0.3131]
[1726823747926,13.06999,2555.1,2555.0,0.3131]
[1726823748122,13.13263957,2555.1,2555.0,0.3131]
[1726823748523,13.31372514,2555.1,2555.0,0.3131]
[1726823749232,2.38846,2554.7,2554.3,0.3835]
[1726823749435,1.85274957,2554.6,2554.3,0.3835]
[1726823749632,0.06264957,2554.5,2554.3,0.3835]
[1726823749934,0.45405957,2554.5,2554.3,0.3835]
[1726823750125,0.39144,2554.3,2554.0,0.3975]
[1726823750321,0.44214957,2554.2,2554.0,0.7949]
[1726823750536,0.06264957,2554.1,2554.0,0.7949]
[1726823750833,0.06264957,2554.1,2554.0,2.2049]
[1726823751025,0.06264957,2554.1,2554.0,2.4829]
[1726823751936,0.39143,2554.3,2554.0,2.4829]
[1726823752143,0.39143,2554.3,2554.2,1.41]
[1726823752338,0.45409009,2554.3,2554.2,1.41]
[1726823754027,0.45409009,2554.3,2554.0,1.0729]
[1726823754028,0.45409009,2554.3,2554.0,2.4829]
[1726823754234,0.06266009,2554.2,2554.0,2.4829]
[1726823754540,0.82852009,2554.2,2554.0,2.4829]
[1726823754836,0.76586,2554.2,2554.0,1.0729]
[1726823755226,0.3744,2554.2,2554.0,1.0729]
[1726823755940,0.76586,2554.2,2554.0,0.6754]
[1726823756238,0.4059,2554.1,2554.0,0.6754]
[1726823757130,0.3744,2554.2,2554.0,2.0854]
[1726823757633,0.76585,2554.2,2554.0,2.0854]
[1726823758636,0.76586,2554.2,2554.0,2.0854]
[1726823760138,0.39146,2554.2,2554.0,0.6754]
[1726823760337,0.39142,2554.4,2554.0,5.2932]
[1726823760539,3.2078,2554.5,2554.2,1.41]
[1726823760742,0.39142,2554.4,2554.3,0.3981]
[1726823761036,3.79074041,2554.7,2554.3,0.3981]
[1726823761037,0.8085,2554.7,2554.3,1.8081]
[1726823761236,0.39136,2554.8,2554.5,1.41]
[1726823763937,0.39137,2554.7,2554.4,0.773]
[1726823764142,0.39137,2554.8,2554.4,0.773]
[1726823764346,0.39137,2554.7,2554.4,0.773]
[1726823764840,0.39138,2554.7,2554.4,0.773]
[1726823765033,0.39139,2554.6,2554.4,0.773]
[1726823765838,0.97842,2554.8,2554.4,0.773]
[1726823766038,0.3914,2554.5,2554.4,0.773]
[1726823766940,0.3914,2554.6,2554.4,0.773]
[1726823768345,0.77348,2554.7,2554.4,0.773]
[1726823769049,0.39139,2554.6,2554.4,0.3913]
[1726823769349,0.4009,2554.5,2554.4,0.3913]
[1726823770646,0.7923,2554.5,2554.4,0.3913]
[1726823771145,0.4009,2554.5,2554.0,0.278]
[1726823771344,0.39143,2554.3,2554.1,0.3969]
[1726823772141,0.39144,2554.3,2554.1,0.3969]
[1726823772543,0.4072,2554.4,2554.0,0.278]
[1726823772749,0.39144,2554.3,2554.1,0.3969]
[1726823773752,0.4072,2554.4,2554.1,0.3969]
[1726823773948,0.39145,2554.3,2554.1,0.3969]
[1726823774337,0.4072,2554.4,2554.1,0.3969]
[1726823774760,0.39144,2554.3,2554.1,0.3969]
[1726823775755,0.39144,2554.3,2554.1,0.6764]
[1726823777054,0.06266125,2554.2,2554.1,0.6764]
[1726823777749,0.45411125,2554.2,2554.1,0.6764]
[1726823778546,0.06266125,2554.2,2554.1,0.6764]
[1726823779856,0.45411125,2554.2,2554.1,0.6764]
[1726823780356,0.45411125,2554.2,2554.1,0.2795]
[1726823780759,0.39145,2554.2,2554.1,0.2795]
[1726823780957,0.45411501,2554.2,2554.1,0.2795]
[1726823784653,0.39145,2554.2,2554.1,0.2795]
[1726823784856,0.39143,2554.3,2554.1,4.1947]
[1726823785058,0.39143,2554.3,2554.1,0.2795]
[1726823785250,0.39143,2554.3,2554.2,0.4107]
[1726823785954,0.4009,2554.5,2554.2,0.4107]
[1726823786153,0.4009,2554.5,2554.3,0.8088]
[1726823786354,0.3914,2554.6,2554.4,1.41]
[1726823786758,0.3914,2554.6,2554.5,0.4095]
[1726823788661,0.7877,2554.6,2554.5,0.4095]
[1726823788962,0.3963,2554.6,2554.5,0.4095]
[1726823789265,0.80445,2554.9,2554.5,5.7339]
[1726823789455,0.39136,2554.8,2554.5,1.8195]
[1726823790659,0.4131,2554.9,2554.5,0.4095]
[1726823790861,0.39137,2554.7,2554.5,0.4095]
[1726823791064,0.80017,2554.8,2554.5,0.4095]
[1726823791261,0.39138,2554.7,2554.5,0.4095]
[1726823791459,0.80017,2554.8,2554.5,0.4095]
[1726823791666,0.4088,2554.8,2554.5,0.4095]
[1726823791967,0.80017,2554.8,2554.5,0.4095]
[1726823792764,1.41,2554.7,2554.3,0.8088]
[1726823792958,1.8072,2554.7,2554.3,0.8088]
[1726823793166,1.8014,2554.6,2554.3,0.8088]
[1726823793362,0.393,2554.5,2554.3,0.8088]
[1726823793566,0.7728,2554.5,2554.3,0.8088]
[1726823794866,1.1642,2554.5,2554.3,0.8088]
[1726823795563,0.7728,2554.5,2554.3,0.8088]
[1726823795863,0.39143,2554.3,2554.2,0.3984]
[1726823796062,0.39145,2554.2,2554.1,0.2795]
[1726823797358,1.80145,2554.2,2554.1,0.2795]
[1726823798868,2.97140917,2554.2,2554.1,0.2795]
[1726823800175,4.68408192,2554.2,2554.1,0.2795]
[1726823801371,4.68408231,2554.2,2554.1,0.2795]
[1726823801576,3.70545231,2554.2,2554.1,0.2795]
[1726823801875,4.68408231,2554.2,2554.1,0.2795]
[1726823803166,3.70545231,2554.2,2554.1,0.2795]
[1726823803467,0.06267314,2554.2,2554.1,0.2795]
[1726823803866,0.45412314,2554.3,2554.1,0.2795]
[1726823804079,0.06267314,2554.2,2554.1,0.2795]
[1726823804578,0.06267314,2554.3,2554.1,0.2795]
[1726823804766,0.06267314,2554.2,2554.1,0.2795]
[1726823804963,0.06267314,2554.3,2554.1,0.2795]
[1726823805276,0.06267314,2554.2,2554.1,0.2795]
[1726823805572,0.06265935,2554.2,2554.1,0.2795]
[1726823805762,0.06265935,2554.3,2554.1,0.2795]
[1726823805966,0.06265935,2554.2,2554.1,0.2795]
[1726823806171,3.51410935,2554.2,2554.1,0.2795]
[1726823806377,7.42930935,2554.2,2554.1,0.2795]
[1726823806771,8.59935043,2554.2,2554.1,0.2795]
[1726823808681,8.77902213,2554.2,2554.1,0.2795]
[1726823809271,9.16642213,2554.2,2554.1,0.2795]
[1726823809471,9.16643622,2554.2,2554.1,0.2795]
[1726823809677,6.10643622,2554.2,2554.1,0.2795]
[1726823809873,9.16643622,2554.2,2554.1,0.2795]
[1726823810780,0.3915,2553.9,2553.4,3.998]
[1726823810984,0.3915,2553.9,2553.3,6.2678]
[1726823812478,0.7692,2553.9,2553.3,6.2678]
[1726823812676,0.39152,2553.8,2553.3,6.2678]
[1726823812879,0.76921,2553.9,2553.3,6.2678]
[1726823813269,0.39151,2553.8,2553.3,6.2678]
[1726823814380,0.39151,2553.8,2553.3,3.06]
[1726823815273,0.3777,2553.9,2553.3,3.06]
[1726823815483,0.39152,2553.8,2553.3,3.06]
[1726823815680,0.39153,2553.7,2553.3,3.06]
[1726823815869,0.39152,2553.8,2553.3,3.06]
[1726823816186,1.54062038,2553.9,2553.3,3.06]
[1726823816371,0.39153,2553.7,2553.3,3.06]
[1726823817082,0.3901,2554.0,2553.3,3.06]
[1726823817273,0.39151,2553.8,2553.3,6.2678]
[1726823817675,0.3901,2554.0,2553.3,6.2678]
[1726823817877,0.39151,2553.8,2553.3,6.2678]
[1726823818585,1.36882,2554.0,2553.3,6.2678]
[1726823818883,1.36882,2554.0,2553.5,3.06]
[1726823818884,0.39149,2554.0,2553.5,3.06]
[1726823819076,0.3915,2553.9,2553.5,3.06]
[1726823820080,0.39151,2553.8,2553.5,3.06]
[1726823820285,0.39151,2553.8,2553.6,0.7856]
[1726823821184,0.97873,2554.0,2553.6,0.7856]
[1726823821377,3.2078,2554.1,2553.6,0.7856]
[1726823821794,0.39151,2553.8,2553.7,0.3911]
[1726823822093,0.39148,2554.0,2553.7,0.3911]
[1726823822587,5.00927,2554.1,2553.7,0.3911]
[1726823822786,3.59927,2554.1,2553.7,1.8011]
[1726823823489,3.2078,2554.1,2553.7,1.8011]
[1726823823683,3.2078,2554.1,2553.9,1.41]
[1726823823883,3.2078,2554.1,2554.0,0.7667]
[1726823824793,3.59926,2554.1,2554.0,0.7667]
[1726823825290,4.03853,2554.5,2554.0,0.7667]
[1726823825588,0.39145,2554.2,2554.1,0.3967]
[1726823825793,0.39144,2554.3,2554.1,0.3967]
[1726823825977,0.39142,2554.4,2554.1,0.3967]
[1726823826383,0.39141,2554.5,2554.1,3.4567]
[1726823826988,0.39139,2554.6,2554.1,3.84816]
[1726823827187,0.97841,2554.8,2554.1,3.4567]
[1726823827395,0.39141,2554.5,2554.1,3.4567]
[1726823827788,0.39141,2554.5,2554.1,7.3719]
[1726823827988,0.39141,2554.5,2554.1,3.4567]
[1726823828190,0.97841,2554.8,2554.1,3.4567]
[1726823828388,2.34871,2554.2,2554.1,0.3967]
[1726823828594,4.43008,2554.2,2554.1,0.3967]
[1726823828800,8.74608,2554.2,2554.1,0.3967]
[1726823828987,4.83088,2554.2,2554.1,0.3967]
[1726823829698,3.85225,2554.2,2554.1,0.3967]
[1726823830395,3.91491838,2554.2,2554.1,0.3967]
[1726823830896,3.91491838,2554.2,2554.0,0.7667]
[1726823830897,0.39146,2554.1,2554.0,0.7667]
[1726823831092,0.45412838,2554.1,2554.0,0.7667]
[1726823832101,0.39149,2554.0,2553.6,0.3866]
[1726823832300,0.06266838,2553.9,2553.7,0.8257]
[1726823833095,0.39147,2554.1,2553.7,0.8257]
[1726823833293,0.06266632,2554.0,2553.7,0.8257]
[1726823833498,0.06266632,2553.9,2553.7,3.8857]
[1726823833701,0.79226,2554.2,2553.7,3.8857]
[1726823833899,0.45413626,2554.1,2553.7,3.8857]
[1726823834101,0.06266626,2554.0,2553.7,3.8857]
[1726823835399,0.45414626,2554.0,2553.7,3.8857]
[1726823835600,0.06266626,2553.9,2553.7,3.8857]
[1726823835904,0.39146,2554.2,2553.7,7.0935]
[1726823836096,0.06266341,2554.1,2553.7,7.48502]
[1726823836293,0.06266341,2554.1,2553.9,3.06]
[1726823836497,0.39145,2554.2,2554.0,0.4027]
[1726823836702,0.39145,2554.2,2554.1,0.7905]
[1726823836902,0.45410925,2554.2,2554.1,0.7905]
[1726823837604,0.39145,2554.2,2554.1,0.7905]
[1726823838598,0.39146,2554.1,2554.0,0.4027]
[1726823838800,0.39159,2553.3,2553.2,2.3466356]
[1726823839104,0.39159,2553.3,2553.0,5.24510848]
[1726823839105,0.3916,2553.2,2553.1,0.7873]
[1726823839303,0.3916,2553.3,2553.1,0.7873]
[1726823839902,0.39159,2553.3,2553.1,0.7873]
[1726823840113,3.06,2553.4,2553.1,0.7873]
[1726823840299,0.39162,2553.1,2552.7,3.2078]